[Event "Live Chess"]
[Site "Chess.com"]
[Date "2024.06.02"]
[Round "-"]
[White "agamilewska"]
[Black "RichardABates"]
[Result "0-1"]
[WhiteElo "1779"]
[BlackElo "2353"]
[TimeControl "300"]
[EndTime "6:22:14 PDT"]
[Termination "RichardABates won by resignation"]

1. d4 {[%clk 0:04:55.8]} 1... Nf6 {[%clk 0:04:58.3]} 2. c4 {[%clk 0:04:53.7]}
2... e6 {[%clk 0:04:56.6]} 3. Nf3 {[%clk 0:04:52.8]} 3... Bb4+ {[%clk 0:04:55]}
4. Nc3 {[%clk 0:04:51.7]} 4... c5 {[%clk 0:04:44.6]} 5. e3 {[%clk 0:04:50.3]}
5... Nc6 {[%clk 0:04:42.4]} 6. Be2 {[%clk 0:04:48.5]} 6... d6 {[%clk 0:04:40.8]}
7. O-O {[%clk 0:04:47.1]} 7... O-O {[%clk 0:04:36.8]} 8. dxc5 {[%clk 0:04:46]}
8... dxc5 {[%clk 0:04:34]} 9. Nb5 {[%clk 0:04:36.5]} 9... a6 {[%clk 0:04:29]}
10. Qxd8 {[%clk 0:04:18.3]} 10... Rxd8 {[%clk 0:04:27]} 11. Nc7 {[%clk
0:04:16.4]} 11... Ra7 {[%clk 0:04:23.6]} 12. Rd1 {[%clk 0:03:48.1]} 12... Rxd1+
{[%clk 0:04:19.9]} 13. Bxd1 {[%clk 0:03:47.1]} 13... Ba5 {[%clk 0:04:18.6]} 14.
Nxe6 {[%clk 0:03:36.3]} 14... Bxe6 {[%clk 0:04:16.3]} 15. Be2 {[%clk 0:03:25.9]}
15... Ra8 {[%clk 0:04:07.8]} 16. Bd2 {[%clk 0:03:11.9]} 16... Bxd2 {[%clk
0:04:04.5]} 17. Nxd2 {[%clk 0:03:11.8]} 17... Rd8 {[%clk 0:04:02]} 18. Nb3
{[%clk 0:03:08.7]} 18... b6 {[%clk 0:04:00.3]} 19. h3 {[%clk 0:03:05.4]} 19...
a5 {[%clk 0:03:56.6]} 20. a3 {[%clk 0:02:53.2]} 20... Ne5 {[%clk 0:03:51]} 0-1

[Event "Live Chess"]
[Site "Chess.com"]
[Date "2024.06.02"]
[Round "-"]
[White "DoctorMantisTobogganMD"]
[Black "LL220284LL"]
[Result "1-0"]
[WhiteElo "2202"]
[BlackElo "2476"]
[TimeControl "300"]
[EndTime "6:23:30 PDT"]
[Termination "DoctorMantisTobogganMD won by checkmate"]

1. e4 {[%clk 0:04:58.7]} 1... g6 {[%clk 0:04:58.8]} 2. Nc3 {[%clk 0:04:56.6]}
2... Bg7 {[%clk 0:04:58.4]} 3. Bc4 {[%clk 0:04:55.3]} 3... e6 {[%clk 0:04:57.1]}
4. d4 {[%clk 0:04:52.3]} 4... Ne7 {[%clk 0:04:56]} 5. Nge2 {[%clk 0:04:50.8]}
5... d5 {[%clk 0:04:54.9]} 6. exd5 {[%clk 0:04:48.7]} 6... exd5 {[%clk
0:04:54.8]} 7. Bb3 {[%clk 0:04:47]} 7... O-O {[%clk 0:04:53.7]} 8. O-O {[%clk
0:04:46.3]} 8... c6 {[%clk 0:04:52.2]} 9. Re1 {[%clk 0:04:43.9]} 9... Nd7 {[%clk
0:04:49.9]} 10. Nf4 {[%clk 0:04:40.1]} 10... Nf6 {[%clk 0:04:48.8]} 11. Nce2
{[%clk 0:04:36.8]} 11... Nf5 {[%clk 0:04:47.3]} 12. c3 {[%clk 0:04:35.3]} 12...
Nd6 {[%clk 0:04:45.7]} 13. Nd3 {[%clk 0:04:32.9]} 13... Bf5 {[%clk 0:04:41.8]}
14. Ne5 {[%clk 0:04:31.3]} 14... Nd7 {[%clk 0:04:34]} 15. Ng3 {[%clk 0:04:28.6]}
15... Be6 {[%clk 0:04:30.1]} 16. f4 {[%clk 0:04:19.3]} 16... Nxe5 {[%clk
0:04:28.6]} 17. fxe5 {[%clk 0:04:18.2]} 17... Nf5 {[%clk 0:04:28]} 18. Nxf5
{[%clk 0:04:17]} 18... Bxf5 {[%clk 0:04:27.9]} 19. Bc2 {[%clk 0:04:16.3]} 19...
Bxc2 {[%clk 0:04:25.6]} 20. Qxc2 {[%clk 0:04:15.6]} 20... Qd7 {[%clk 0:04:25.1]}
21. Bg5 {[%clk 0:04:03.8]} 21... Rae8 {[%clk 0:04:23.5]} 22. Re2 {[%clk
0:04:00]} 22... Re6 {[%clk 0:04:20.9]} 23. Rf1 {[%clk 0:03:57.8]} 23... Qe8
{[%clk 0:04:14.6]} 24. Ref2 {[%clk 0:03:55.2]} 24... c5 {[%clk 0:04:11.3]} 25.
Bf6 {[%clk 0:03:51]} 25... cxd4 {[%clk 0:04:03.9]} 26. cxd4 {[%clk 0:03:49.9]}
26... Qc6 {[%clk 0:04:02.5]} 27. Bxg7 {[%clk 0:03:44.9]} 27... Qxc2 {[%clk
0:03:58.7]} 28. Rxc2 {[%clk 0:03:43.3]} 28... Kxg7 {[%clk 0:03:58]} 29. Rc7
{[%clk 0:03:43]} 29... Rb6 {[%clk 0:03:57.3]} 30. Rf2 {[%clk 0:03:37.4]} 30...
Rb4 {[%clk 0:03:54.3]} 31. Rd2 {[%clk 0:03:36]} 31... Kg8 {[%clk 0:03:46.7]} 32.
Rd7 {[%clk 0:03:34]} 32... Rb5 {[%clk 0:03:43.4]} 33. a3 {[%clk 0:03:29.2]}
33... a5 {[%clk 0:03:35.9]} 34. Rf2 {[%clk 0:03:25.2]} 34... a4 {[%clk
0:03:30.4]} 35. h3 {[%clk 0:03:20.1]} 35... Rb3 {[%clk 0:03:26.8]} 36. Rxd5
{[%clk 0:03:16.4]} 36... b5 {[%clk 0:03:21]} 37. Rd7 {[%clk 0:03:12.3]} 37... b4
{[%clk 0:03:20.4]} 38. axb4 {[%clk 0:03:10.9]} 38... Rxb4 {[%clk 0:03:20.3]} 39.
d5 {[%clk 0:03:09.6]} 39... Re4 {[%clk 0:03:18.6]} 40. Re7 {[%clk 0:03:04.9]}
40... h5 {[%clk 0:03:00.6]} 41. d6 {[%clk 0:03:03.1]} 41... Rd4 {[%clk
0:02:51.6]} 42. Ra7 {[%clk 0:02:46.2]} 42... Re4 {[%clk 0:02:47.3]} 43. Re7
{[%clk 0:02:44.3]} 43... Rd4 {[%clk 0:02:46]} 44. Kh2 {[%clk 0:02:43]} 44... g5
{[%clk 0:02:44.2]} 45. Rf5 {[%clk 0:02:41]} 45... f6 {[%clk 0:02:37.3]} 46. exf6
{[%clk 0:02:35.9]} 46... Rxd6 {[%clk 0:02:36.3]} 47. Rxg5+ {[%clk 0:02:35.1]}
47... Kh8 {[%clk 0:02:33.4]} 48. Rxh5+ {[%clk 0:02:34.3]} 48... Kg8 {[%clk
0:02:32.7]} 49. Rg7# {[%clk 0:02:32.4]} 1-0

[Event "Live Chess"]
[Site "Chess.com"]
[Date "2024.06.02"]
[Round "-"]
[White "ACM42"]
[Black "f4nomore"]
[Result "1-0"]
[WhiteElo "2209"]
[BlackElo "1280"]
[TimeControl "300"]
[EndTime "6:23:40 PDT"]
[Termination "ACM42 won by checkmate"]

1. e4 {[%clk 0:04:46.2]} 1... g6 {[%clk 0:04:59.9]} 2. d4 {[%clk 0:04:44.9]}
2... Bg7 {[%clk 0:04:59.8]} 3. Nc3 {[%clk 0:04:43.6]} 3... d6 {[%clk 0:04:59.7]}
4. Nf3 {[%clk 0:04:42.2]} 4... Nd7 {[%clk 0:04:56.9]} 5. Be3 {[%clk 0:04:41.4]}
5... b6 {[%clk 0:04:56]} 6. a4 {[%clk 0:04:37.2]} 6... Bb7 {[%clk 0:04:54.6]} 7.
Bc4 {[%clk 0:04:29.6]} 7... Ngf6 {[%clk 0:04:52.8]} 8. e5 {[%clk 0:04:27.9]}
8... dxe5 {[%clk 0:04:49.7]} 9. dxe5 {[%clk 0:04:26.7]} 9... Ng4 {[%clk
0:04:48.1]} 10. e6 {[%clk 0:04:23.9]} 10... Nxe3 {[%clk 0:04:45.9]} 11. exd7+
{[%clk 0:04:18.5]} 11... Kf8 {[%clk 0:04:40.9]} 12. fxe3 {[%clk 0:04:17.5]}
12... e6 {[%clk 0:04:33.1]} 13. O-O {[%clk 0:04:13.2]} 13... Qe7 {[%clk
0:04:26]} 14. Qd3 {[%clk 0:04:02.9]} 14... Rd8 {[%clk 0:04:24.1]} 15. Rad1
{[%clk 0:04:01.6]} 15... Bc6 {[%clk 0:04:22.2]} 16. Bb5 {[%clk 0:03:50.5]} 16...
Bxb5 {[%clk 0:04:02]} 17. Qxb5 {[%clk 0:03:48.7]} 17... Bf6 {[%clk 0:03:43.5]}
18. Ne4 {[%clk 0:03:44.2]} 18... Kg7 {[%clk 0:03:41.5]} 19. Nxf6 {[%clk
0:03:42.7]} 19... Qxf6 {[%clk 0:03:39.8]} 20. Ne5 {[%clk 0:03:42.1]} 20... Qg5
{[%clk 0:03:33.3]} 21. Rxf7+ {[%clk 0:03:40.4]} 21... Kh6 {[%clk 0:03:31.3]} 22.
h3 {[%clk 0:03:29.6]} 22... Qxe3+ {[%clk 0:03:28.1]} 23. Kh1 {[%clk 0:03:28.2]}
23... Qe2 {[%clk 0:03:25.4]} 24. Ng4+ {[%clk 0:03:25.8]} 24... Qxg4 {[%clk
0:03:16.6]} 25. hxg4 {[%clk 0:03:25.7]} 25... a6 {[%clk 0:03:06]} 26. Qd3 {[%clk
0:03:22.3]} 26... c5 {[%clk 0:02:59.7]} 27. Qe3+ {[%clk 0:03:21.1]} 27... g5
{[%clk 0:02:54.7]} 28. Qxe6# {[%clk 0:03:20.4]} 1-0

[Event "Live Chess"]
[Site "Chess.com"]
[Date "2024.06.02"]
[Round "-"]
[White "TheSmoulderingMaster"]
[Black "Bradfield133"]
[Result "1-0"]
[WhiteElo "1764"]
[BlackElo "1854"]
[TimeControl "300"]
[EndTime "6:23:42 PDT"]
[Termination "TheSmoulderingMaster won by resignation"]

1. e4 {[%clk 0:04:57.2]} 1... c5 {[%clk 0:04:57.7]} 2. Nf3 {[%clk 0:04:55.7]}
2... Nc6 {[%clk 0:04:56.7]} 3. d4 {[%clk 0:04:53.4]} 3... cxd4 {[%clk
0:04:55.7]} 4. Nxd4 {[%clk 0:04:52.7]} 4... g6 {[%clk 0:04:55.1]} 5. Nc3 {[%clk
0:04:51.1]} 5... Bg7 {[%clk 0:04:53.8]} 6. Be3 {[%clk 0:04:48.5]} 6... Nf6
{[%clk 0:04:52.7]} 7. Bc4 {[%clk 0:04:45.9]} 7... Qa5 {[%clk 0:04:49.4]} 8. Nb3
{[%clk 0:04:41]} 8... Qc7 {[%clk 0:04:47.7]} 9. Qd2 {[%clk 0:04:39.3]} 9... Ng4
{[%clk 0:04:42.1]} 10. Nd5 {[%clk 0:04:33.3]} 10... Qd8 {[%clk 0:04:40.1]} 11.
Bf4 {[%clk 0:04:31.2]} 11... Bxb2 {[%clk 0:04:33.2]} 12. Bc7 {[%clk 0:04:29]}
12... Bxa1 {[%clk 0:04:28.4]} 13. Bxd8 {[%clk 0:04:27.2]} 13... Kxd8 {[%clk
0:04:26.1]} 14. Nxa1 {[%clk 0:04:25.6]} 14... e6 {[%clk 0:04:15.1]} 15. Nb4
{[%clk 0:04:21.4]} 15... Nge5 {[%clk 0:04:08.6]} 16. Nxc6+ {[%clk 0:04:19.4]}
16... bxc6 {[%clk 0:04:05.2]} 17. Bd3 {[%clk 0:04:17.4]} 17... Nxd3+ {[%clk
0:03:54.3]} 18. cxd3 {[%clk 0:04:16]} 18... Ke7 {[%clk 0:03:52]} 19. Nb3 {[%clk
0:04:14.5]} 19... d6 {[%clk 0:03:50.8]} 20. Ke2 {[%clk 0:04:13.5]} 20... Bd7
{[%clk 0:03:49.3]} 21. Rc1 {[%clk 0:04:11]} 21... Rhb8 {[%clk 0:03:39.6]} 22.
Qg5+ {[%clk 0:04:08.6]} 22... Kf8 {[%clk 0:03:31]} 23. Qh6+ {[%clk 0:04:05.7]}
23... Kg8 {[%clk 0:03:29.6]} 24. Qf4 {[%clk 0:04:03.8]} 24... e5 {[%clk
0:03:25.9]} 25. Qf6 {[%clk 0:04:01.5]} 25... Be6 {[%clk 0:03:24.3]} 26. Rxc6
{[%clk 0:03:58.4]} 26... Bxb3 {[%clk 0:03:19.2]} 27. axb3 {[%clk 0:03:56.9]}
27... Rxb3 {[%clk 0:03:17.9]} 28. Rxd6 {[%clk 0:03:56.3]} 28... Rb2+ {[%clk
0:03:06.8]} 29. Ke3 {[%clk 0:03:54.6]} 29... Rb5 {[%clk 0:03:04.8]} 30. Rd8+
{[%clk 0:03:51.9]} 30... Rxd8 {[%clk 0:03:02.7]} 31. Qxd8+ {[%clk 0:03:50.9]}
31... Kg7 {[%clk 0:03:02.4]} 32. Qd7 {[%clk 0:03:49.8]} 32... a6 {[%clk
0:02:57.4]} 33. Qc6 {[%clk 0:03:44.7]} 33... Ra5 {[%clk 0:02:50.3]} 34. Qc3
{[%clk 0:03:39.2]} 34... Rb5 {[%clk 0:02:46.5]} 35. f4 {[%clk 0:03:37.8]} 1-0

[Event "Live Chess"]
[Site "Chess.com"]
[Date "2024.06.02"]
[Round "-"]
[White "CheckThis4"]
[Black "WorcesterYork"]
[Result "1-0"]
[WhiteElo "2688"]
[BlackElo "2448"]
[TimeControl "300"]
[EndTime "6:23:43 PDT"]
[Termination "CheckThis4 won by checkmate"]

1. d4 {[%clk 0:04:58.1]} 1... d6 {[%clk 0:04:57]} 2. Nc3 {[%clk 0:04:52.1]} 2...
Nf6 {[%clk 0:04:56]} 3. e4 {[%clk 0:04:50.8]} 3... Nbd7 {[%clk 0:04:52.9]} 4. g4
{[%clk 0:04:49.6]} 4... h6 {[%clk 0:04:49.2]} 5. h3 {[%clk 0:04:43.2]} 5... c6
{[%clk 0:04:46.2]} 6. Bg2 {[%clk 0:04:39.7]} 6... g6 {[%clk 0:04:43.4]} 7. Nge2
{[%clk 0:04:38.7]} 7... Bg7 {[%clk 0:04:42.8]} 8. Be3 {[%clk 0:04:38]} 8... e5
{[%clk 0:04:34.7]} 9. f4 {[%clk 0:04:32.7]} 9... exf4 {[%clk 0:04:31.5]} 10.
Nxf4 {[%clk 0:04:29.2]} 10... Qe7 {[%clk 0:04:30.3]} 11. Qf3 {[%clk 0:04:27.4]}
11... O-O {[%clk 0:04:18.4]} 12. O-O-O {[%clk 0:04:26.1]} 12... b5 {[%clk
0:04:17.3]} 13. h4 {[%clk 0:04:14.5]} 13... b4 {[%clk 0:04:16.1]} 14. Nce2
{[%clk 0:04:12.8]} 14... Nb6 {[%clk 0:04:04.4]} 15. g5 {[%clk 0:04:08.3]} 15...
Ng4 {[%clk 0:04:02.6]} 16. Bg1 {[%clk 0:03:57]} 16... h5 {[%clk 0:04:01]} 17.
Kb1 {[%clk 0:03:47.9]} 17... a5 {[%clk 0:04:00.1]} 18. Nc1 {[%clk 0:03:42.7]}
18... a4 {[%clk 0:03:58.9]} 19. e5 {[%clk 0:03:29.9]} 19... d5 {[%clk
0:03:57.1]} 20. Nfd3 {[%clk 0:03:23.2]} 20... Bf5 {[%clk 0:03:54.1]} 21. Nc5
{[%clk 0:03:20.6]} 21... Nc4 {[%clk 0:03:52.8]} 22. Rh3 {[%clk 0:03:06]} 22...
Rfb8 {[%clk 0:03:50.5]} 23. Qe2 {[%clk 0:02:58.6]} 23... Rb5 {[%clk 0:03:46.4]}
24. Rf3 {[%clk 0:02:55.7]} 24... Rxc5 {[%clk 0:03:43.5]} 25. dxc5 {[%clk
0:02:52.2]} 25... Be4 {[%clk 0:03:40]} 26. Rf6 {[%clk 0:02:42.9]} 26... Bxg2
{[%clk 0:03:29.1]} 27. Qxg2 {[%clk 0:02:42.8]} 27... Ngxe5 {[%clk 0:03:26.1]}
28. Bd4 {[%clk 0:02:34.4]} 28... Ng4 {[%clk 0:03:17.8]} 29. Qf3 {[%clk
0:02:21.6]} 29... Bxf6 {[%clk 0:03:06.2]} 30. Bxf6 {[%clk 0:02:03.6]} 30... Nxf6
{[%clk 0:03:04.6]} 31. gxf6 {[%clk 0:02:01.7]} 31... Qe1 {[%clk 0:02:54]} 32.
Qd3 {[%clk 0:01:35.7]} 32... Qxh4 {[%clk 0:02:50.1]} 33. Rf1 {[%clk 0:01:25.8]}
33... Re8 {[%clk 0:02:48]} 34. b3 {[%clk 0:01:19.1]} 34... Ne3 {[%clk
0:02:21.3]} 35. Rf3 {[%clk 0:01:15.8]} 35... Ng4 {[%clk 0:02:08.1]} 36. Qd4
{[%clk 0:01:08.9]} 36... a3 {[%clk 0:02:03.5]} 37. Qxb4 {[%clk 0:00:59.8]} 37...
Re1 {[%clk 0:02:02.1]} 38. Qxa3 {[%clk 0:00:55.4]} 38... Nxf6 {[%clk 0:01:58.5]}
39. Qa8+ {[%clk 0:00:49.9]} 39... Kg7 {[%clk 0:01:57.4]} 40. Qxc6 {[%clk
0:00:49.4]} 40... Ne4 {[%clk 0:01:53.9]} 41. Qxd5 {[%clk 0:00:40.1]} 41... Qh1
{[%clk 0:01:07.6]} 42. Qxf7+ {[%clk 0:00:36.5]} 42... Kh6 {[%clk 0:01:06.4]} 43.
Qf8+ {[%clk 0:00:35.4]} 43... Kg5 {[%clk 0:01:02.9]} 44. Qf4# {[%clk 0:00:32.9]}
1-0

[Event "Live Chess"]
[Site "Chess.com"]
[Date "2024.06.02"]
[Round "-"]
[White "Step-S"]
[Black "Colm_Buckley"]
[Result "0-1"]
[WhiteElo "1248"]
[BlackElo "1883"]
[TimeControl "300"]
[EndTime "6:23:47 PDT"]
[Termination "Colm_Buckley won by resignation"]

1. e4 {[%clk 0:04:57.1]} 1... c6 {[%clk 0:04:59.2]} 2. d4 {[%clk 0:04:56.5]}
2... d5 {[%clk 0:04:58.5]} 3. Bd3 {[%clk 0:04:52.4]} 3... dxe4 {[%clk
0:04:56.7]} 4. Bxe4 {[%clk 0:04:51.3]} 4... Nf6 {[%clk 0:04:56.3]} 5. Nc3 {[%clk
0:04:44.9]} 5... Nxe4 {[%clk 0:04:53]} 6. Nxe4 {[%clk 0:04:43.8]} 6... Bf5
{[%clk 0:04:51.2]} 7. f3 {[%clk 0:04:41.8]} 7... e6 {[%clk 0:04:43.4]} 8. g4
{[%clk 0:04:31.6]} 8... Bxe4 {[%clk 0:04:40.9]} 9. fxe4 {[%clk 0:04:30.2]} 9...
Qh4+ {[%clk 0:04:36.6]} 10. Kf1 {[%clk 0:04:23.1]} 10... h5 {[%clk 0:04:25.9]}
11. Nf3 {[%clk 0:04:21.4]} 11... Qxg4 {[%clk 0:04:17.9]} 12. Rg1 {[%clk
0:04:14.3]} 12... Qxe4 {[%clk 0:04:11.9]} 13. Kf2 {[%clk 0:04:02.3]} 13... Nd7
{[%clk 0:03:59.3]} 14. Re1 {[%clk 0:03:57.5]} 14... Qf5 {[%clk 0:03:54.4]} 15.
Be3 {[%clk 0:03:44.3]} 15... Nf6 {[%clk 0:03:45.4]} 16. Rg1 {[%clk 0:03:29]}
16... Ng4+ {[%clk 0:03:39.7]} 17. Ke2 {[%clk 0:03:24.6]} 17... Nxe3 {[%clk
0:03:30.3]} 18. Kxe3 {[%clk 0:03:19.7]} 18... O-O-O {[%clk 0:03:19.9]} 19. c3
{[%clk 0:03:06.3]} 19... c5 {[%clk 0:03:12.9]} 20. Qa4 {[%clk 0:02:56.5]} 20...
cxd4+ {[%clk 0:03:01.2]} 21. cxd4 {[%clk 0:02:53]} 21... Kb8 {[%clk 0:02:51.3]}
22. Rac1 {[%clk 0:02:37.5]} 22... Bd6 {[%clk 0:02:42.6]} 23. Rg5 {[%clk
0:02:18.8]} 23... Qf4+ {[%clk 0:02:38.3]} 24. Kf2 {[%clk 0:02:11.8]} 24... Qxc1
{[%clk 0:02:34.5]} 25. Ra5 {[%clk 0:02:04.7]} 25... Qxb2+ {[%clk 0:02:26]} 26.
Ke3 {[%clk 0:01:57.3]} 26... Qb6 {[%clk 0:02:15.3]} 27. Rb5 {[%clk 0:01:41.9]}
27... Qc6 {[%clk 0:02:06.6]} 28. Qb3 {[%clk 0:01:39.9]} 28... Rd7 {[%clk
0:01:52.6]} 29. a4 {[%clk 0:01:36.2]} 29... Rc8 {[%clk 0:01:49.9]} 0-1

[Event "Live Chess"]
[Site "Chess.com"]
[Date "2024.06.02"]
[Round "-"]
[White "NeilDruggan73"]
[Black "resipsa6"]
[Result "0-1"]
[WhiteElo "1708"]
[BlackElo "2023"]
[TimeControl "300"]
[EndTime "6:23:58 PDT"]
[Termination "resipsa6 won by resignation"]

1. d4 {[%clk 0:04:56.7]} 1... c6 {[%clk 0:04:59.4]} 2. g3 {[%clk 0:04:45.7]}
2... d5 {[%clk 0:04:58.4]} 3. Bg5 {[%clk 0:04:42.4]} 3... g6 {[%clk 0:04:57.6]}
4. Nd2 {[%clk 0:04:39.7]} 4... Bg7 {[%clk 0:04:57]} 5. e3 {[%clk 0:04:35.3]}
5... Bf5 {[%clk 0:04:54.4]} 6. Ndf3 {[%clk 0:04:18]} 6... Nf6 {[%clk 0:04:53.1]}
7. Bxf6 {[%clk 0:04:15.7]} 7... Bxf6 {[%clk 0:04:51.4]} 8. Bd3 {[%clk
0:04:15.2]} 8... Bxd3 {[%clk 0:04:50.3]} 9. Qxd3 {[%clk 0:04:12.9]} 9... Nd7
{[%clk 0:04:49.7]} 10. b4 {[%clk 0:04:10.1]} 10... a5 {[%clk 0:04:47.8]} 11. c3
{[%clk 0:04:05.8]} 11... axb4 {[%clk 0:04:46.8]} 12. cxb4 {[%clk 0:04:04.2]}
12... Qb6 {[%clk 0:04:45.3]} 13. Qc3 {[%clk 0:03:56.4]} 13... O-O {[%clk
0:04:34.4]} 14. Ne2 {[%clk 0:03:55.8]} 14... Ra4 {[%clk 0:04:32.6]} 15. a3
{[%clk 0:03:52.1]} 15... Rfa8 {[%clk 0:04:30.4]} 16. O-O {[%clk 0:03:49.9]}
16... e6 {[%clk 0:04:26.5]} 17. g4 {[%clk 0:03:28.4]} 17... Be7 {[%clk
0:04:25.1]} 18. Rfb1 {[%clk 0:03:19.2]} 18... Bd6 {[%clk 0:04:13.7]} 19. Ne5
{[%clk 0:03:14.2]} 19... Nxe5 {[%clk 0:04:12.2]} 20. dxe5 {[%clk 0:03:13.1]}
20... Be7 {[%clk 0:04:10.1]} 21. f4 {[%clk 0:02:58.1]} 21... Bxb4 {[%clk
0:03:38]} 22. Rxb4 {[%clk 0:02:17.5]} 22... Rxb4 {[%clk 0:03:34.1]} 23. axb4
{[%clk 0:02:09.7]} 23... Rxa1+ {[%clk 0:03:34]} 24. Qxa1 {[%clk 0:02:08.1]}
24... Qxe3+ {[%clk 0:03:32.9]} 25. Kf1 {[%clk 0:02:06.5]} 25... Qf3+ {[%clk
0:03:32.1]} 26. Kg1 {[%clk 0:01:52.9]} 26... Qxe2 {[%clk 0:03:31.1]} 27. Qa8+
{[%clk 0:01:20]} 27... Kg7 {[%clk 0:03:29.6]} 28. Qxb7 {[%clk 0:01:17.8]} 28...
Qxg4+ {[%clk 0:03:26.9]} 29. Kf1 {[%clk 0:01:06.2]} 29... Qxf4+ {[%clk
0:03:25.4]} 30. Kg2 {[%clk 0:01:05.8]} 30... Qe4+ {[%clk 0:03:23.3]} 31. Kg1
{[%clk 0:00:59.6]} 31... d4 {[%clk 0:03:19.8]} 32. b5 {[%clk 0:00:57.1]} 32...
d3 {[%clk 0:03:15.9]} 33. bxc6 {[%clk 0:00:53.8]} 33... d2 {[%clk 0:03:12.9]}
34. Qb3 {[%clk 0:00:45.7]} 34... Qe1+ {[%clk 0:03:10.1]} 35. Kg2 {[%clk
0:00:42.8]} 35... Qe2+ {[%clk 0:03:07.6]} 0-1

[Event "Live Chess"]
[Site "Chess.com"]
[Date "2024.06.02"]
[Round "-"]
[White "gmnorfolk"]
[Black "seasidecastle27"]
[Result "1-0"]
[WhiteElo "2152"]
[BlackElo "1942"]
[TimeControl "300"]
[EndTime "6:24:07 PDT"]
[Termination "gmnorfolk won by resignation"]

1. c4 {[%clk 0:04:58]} 1... e6 {[%clk 0:04:58.6]} 2. Nc3 {[%clk 0:04:55.8]} 2...
d5 {[%clk 0:04:57.6]} 3. e3 {[%clk 0:04:52.1]} 3... Nf6 {[%clk 0:04:55.1]} 4.
Nf3 {[%clk 0:04:52]} 4... c5 {[%clk 0:04:53.8]} 5. d4 {[%clk 0:04:48.4]} 5...
cxd4 {[%clk 0:04:50.7]} 6. exd4 {[%clk 0:04:47]} 6... Nc6 {[%clk 0:04:49.6]} 7.
Bg5 {[%clk 0:04:43.2]} 7... Be7 {[%clk 0:04:48.5]} 8. Bd3 {[%clk 0:04:41.7]}
8... dxc4 {[%clk 0:04:45.6]} 9. Bxc4 {[%clk 0:04:40.2]} 9... O-O {[%clk
0:04:43.6]} 10. O-O {[%clk 0:04:39.5]} 10... b6 {[%clk 0:04:42.2]} 11. Re1
{[%clk 0:04:35.9]} 11... Bb7 {[%clk 0:04:41.3]} 12. a3 {[%clk 0:04:32.6]} 12...
Rc8 {[%clk 0:04:39.6]} 13. Ba2 {[%clk 0:04:31.1]} 13... Nd5 {[%clk 0:04:20.8]}
14. Bxe7 {[%clk 0:04:24.6]} 14... Ncxe7 {[%clk 0:04:19.1]} 15. Ne4 {[%clk
0:04:22]} 15... Ng6 {[%clk 0:04:11.4]} 16. g3 {[%clk 0:04:19.1]} 16... Nf6
{[%clk 0:04:09.9]} 17. Nc3 {[%clk 0:04:06.7]} 17... Nd5 {[%clk 0:04:04.3]} 18.
Rc1 {[%clk 0:03:55]} 18... Nxc3 {[%clk 0:04:01.2]} 19. bxc3 {[%clk 0:03:51.7]}
19... Qf6 {[%clk 0:03:51.6]} 20. Nd2 {[%clk 0:03:46.4]} 20... Qg5 {[%clk
0:03:42.6]} 21. Ne4 {[%clk 0:03:40.9]} 21... Qe7 {[%clk 0:03:29.4]} 22. a4
{[%clk 0:03:31.5]} 22... Rfd8 {[%clk 0:03:25.9]} 23. a5 {[%clk 0:03:24.5]} 23...
Qa3 {[%clk 0:03:08.8]} 24. Ra1 {[%clk 0:03:18.6]} 24... Qe7 {[%clk 0:02:59.2]}
25. axb6 {[%clk 0:03:12.7]} 25... axb6 {[%clk 0:02:57.9]} 26. Rb1 {[%clk
0:03:06.4]} 26... Bxe4 {[%clk 0:02:37.2]} 27. Rxe4 {[%clk 0:03:03.5]} 27... Rxc3
{[%clk 0:02:33.8]} 28. Rxb6 {[%clk 0:03:02.5]} 28... Qa3 {[%clk 0:02:26]} 29.
Qd2 {[%clk 0:02:40.7]} 29... Rc1+ {[%clk 0:02:03.4]} 30. Kg2 {[%clk 0:02:36.3]}
30... Ra1 {[%clk 0:01:59.7]} 31. Rb2 {[%clk 0:02:28]} 31... Qa6 {[%clk
0:01:48.1]} 32. Qe2 {[%clk 0:02:13.9]} 32... Qc6 {[%clk 0:01:45.8]} 33. d5
{[%clk 0:02:03.4]} 33... exd5 {[%clk 0:01:34.8]} 34. Rc2 {[%clk 0:01:07.2]}
34... Rxa2 {[%clk 0:00:57.4]} 35. Rxc6 {[%clk 0:00:59]} 35... Rxe2 {[%clk
0:00:53.2]} 36. Rxe2 {[%clk 0:00:58.4]} 36... d4 {[%clk 0:00:51.7]} 37. Rd2
{[%clk 0:00:53.4]} 37... d3 {[%clk 0:00:44]} 38. Rc3 {[%clk 0:00:48.9]} 38...
Ne5 {[%clk 0:00:41.9]} 39. f4 {[%clk 0:00:45.7]} 39... Ng4 {[%clk 0:00:38.3]}
40. Rcxd3 {[%clk 0:00:43.7]} 40... Ne3+ {[%clk 0:00:34.4]} 41. Kf3 {[%clk
0:00:40.1]} 41... Rxd3 {[%clk 0:00:28.3]} 42. Rxd3 {[%clk 0:00:38]} 1-0

[Event "Live Chess"]
[Site "Chess.com"]
[Date "2024.06.02"]
[Round "-"]
[White "oscalik"]
[Black "FMOlexandrProhorov"]
[Result "0-1"]
[WhiteElo "2234"]
[BlackElo "2344"]
[TimeControl "300"]
[EndTime "6:24:10 PDT"]
[Termination "FMOlexandrProhorov won by checkmate"]

1. e4 {[%clk 0:04:54]} 1... d5 {[%clk 0:04:58.6]} 2. exd5 {[%clk 0:04:52.8]}
2... Nf6 {[%clk 0:04:58.1]} 3. d4 {[%clk 0:04:51]} 3... Nxd5 {[%clk 0:04:57.1]}
4. Nf3 {[%clk 0:04:49.9]} 4... g6 {[%clk 0:04:55.9]} 5. Be2 {[%clk 0:04:48.5]}
5... Bg7 {[%clk 0:04:55.3]} 6. O-O {[%clk 0:04:48.1]} 6... O-O {[%clk
0:04:54.6]} 7. h3 {[%clk 0:04:42.4]} 7... c5 {[%clk 0:04:50.4]} 8. c4 {[%clk
0:04:41.1]} 8... Nb6 {[%clk 0:04:45.6]} 9. d5 {[%clk 0:04:39.4]} 9... e6 {[%clk
0:04:45]} 10. Nc3 {[%clk 0:04:30.4]} 10... exd5 {[%clk 0:04:43.5]} 11. Nxd5
{[%clk 0:04:28.4]} 11... Bf5 {[%clk 0:04:37.9]} 12. Bg5 {[%clk 0:04:26]} 12...
f6 {[%clk 0:04:33.2]} 13. Bf4 {[%clk 0:04:22.8]} 13... Nc6 {[%clk 0:04:31.1]}
14. Bc7 {[%clk 0:04:05.9]} 14... Qd7 {[%clk 0:04:21.9]} 15. Bxb6 {[%clk
0:04:03.8]} 15... axb6 {[%clk 0:04:19.3]} 16. Nxb6 {[%clk 0:04:02.9]} 16... Qxd1
{[%clk 0:04:19.2]} 17. Rfxd1 {[%clk 0:04:01.6]} 17... Ra6 {[%clk 0:04:18.5]} 18.
Nd5 {[%clk 0:03:58.7]} 18... Re8 {[%clk 0:04:12.6]} 19. Ne3 {[%clk 0:03:33.3]}
19... Be4 {[%clk 0:03:47.4]} 20. Rd7 {[%clk 0:03:30.9]} 20... f5 {[%clk
0:03:44]} 21. Rad1 {[%clk 0:03:21]} 21... Rxa2 {[%clk 0:03:38.5]} 22. Rxb7
{[%clk 0:03:17.6]} 22... Nd4 {[%clk 0:03:34.7]} 23. Rxg7+ {[%clk 0:03:05.9]}
23... Kxg7 {[%clk 0:03:32.3]} 24. Nxd4 {[%clk 0:03:05.8]} 24... cxd4 {[%clk
0:03:24.5]} 25. Rxd4 {[%clk 0:03:05.7]} 25... Rxb2 {[%clk 0:03:23.8]} 26. Rd7+
{[%clk 0:03:02]} 26... Kf6 {[%clk 0:03:20.4]} 27. c5 {[%clk 0:02:56.3]} 27...
Rxe2 {[%clk 0:03:16.4]} 28. Rxh7 {[%clk 0:02:47.7]} 28... Rb8 {[%clk 0:02:52.2]}
29. c6 {[%clk 0:02:29.9]} 29... Bxc6 {[%clk 0:02:42.8]} 30. Rc7 {[%clk
0:02:28.4]} 30... Be4 {[%clk 0:02:41.3]} 31. h4 {[%clk 0:02:24]} 31... Rb1+
{[%clk 0:02:40.3]} 32. Kh2 {[%clk 0:02:23.2]} 32... Rxf2 {[%clk 0:02:39.7]} 33.
h5 {[%clk 0:02:22.1]} 33... gxh5 {[%clk 0:02:37.7]} 34. Kg3 {[%clk 0:02:20.6]}
34... Rbb2 {[%clk 0:02:35.5]} 35. Kh4 {[%clk 0:02:15.6]} 35... Rb4 {[%clk
0:02:24.2]} 36. Kxh5 {[%clk 0:02:13.4]} 36... Bxg2 {[%clk 0:02:22.5]} 37. Rc5
{[%clk 0:02:00.9]} 37... Bf3+ {[%clk 0:02:20.5]} 38. Kh6 {[%clk 0:01:57.7]}
38... Rh2# {[%clk 0:02:20.4]} 0-1